bitfinex-derivatives/quotes_ETHF0:USTF0_20241005
["timestamp","ask_amount","ask_price","bid_price","bid_amount"]
[1728092221200,0.4217,2416.8,2416.7,3.1108763]
[1728092221601,0.4217,2416.8,2416.7,4.67339321]
[1728092222713,4.2478,2417.0,2416.7,3.85264221]
[1728092223010,1.7313,2417.2,2416.7,3.85264221]
[1728092223011,0.28958,2417.2,2416.8,2.6560857]
[1728092223315,0.28959,2417.1,2416.9,0.2896]
[1728092223813,0.28959,2417.1,2417.0,0.4108]
[1728092225202,1.04,2417.2,2417.0,0.4108]
[1728092225410,1.32958,2417.2,2417.1,0.3858]
[1728092227806,1.32958,2417.2,2417.1,0.8095]
[1728092230316,1.32958,2417.2,2417.1,0.3858]
[1728092231608,4.53738,2417.2,2417.1,0.3858]
[1728092232219,1.32958,2417.2,2417.1,0.3858]
[1728092234719,4.53738,2417.2,2417.1,0.3858]
[1728092243019,0.28958,2417.2,2417.1,0.3858]
[1728092243234,0.28957,2417.2,2417.1,1.4707253]
[1728092243824,0.28957,2417.2,2417.1,2.00216386]
[1728092244021,0.28957,2417.2,2417.1,2.00215698]
[1728092244226,0.28957,2417.2,2417.1,1.4707253]
[1728092244620,0.28957,2417.2,2417.1,2.00216001]
[1728092244820,0.28957,2417.2,2417.1,0.3858]
[1728092245319,1.32957,2417.2,2417.1,0.3858]
[1728092246621,1.32957,2417.2,2417.1,0.91717928]
[1728092247622,1.32957,2417.2,2417.1,0.3858]
[1728092247824,1.32957,2417.2,2417.1,0.91715875]
[1728092248030,0.71527,2417.3,2417.1,0.91715875]
[1728092248229,0.71527,2417.3,2417.1,0.67538]
[1728092248526,0.28957,2417.2,2417.1,0.67538]
[1728092248727,0.28957,2417.2,2417.1,1.20669051]
[1728092249827,0.28957,2417.2,2417.1,0.91711051]
[1728092251223,0.28957,2417.2,2417.1,0.3858]
[1728092251428,0.28957,2417.2,2417.1,0.91704563]
[1728092252729,0.28957,2417.2,2417.1,2.00197093]
[1728092253127,1.04,2417.4,2417.1,2.00197093]
[1728092253334,0.28957,2417.3,2417.1,1.7603053]
[1728092253627,4.33547,2417.5,2417.2,0.28956]
[1728092253628,0.28955,2417.4,2417.2,0.28956]
[1728092253823,0.69334,2417.5,2417.3,1.73465]
[1728092254023,0.28954,2417.5,2417.4,0.68145]
[1728092254331,0.28954,2417.5,2417.4,0.3919]
[1728092254832,0.28954,2417.5,2417.4,1.4768253]
[1728092255328,0.28954,2417.5,2417.4,0.3919]
[1728092257926,0.28953,2417.6,2417.4,0.68144]
[1728092258126,0.69312,2417.7,2417.5,1.72883]
[1728092258521,0.69312,2417.7,2417.6,0.4133]
[1728092259721,1.73312,2417.7,2417.6,0.4133]
[1728092261124,0.72382,2417.6,2416.9,1.3739253]
[1728092261329,0.72382,2417.6,2416.8,0.3877]
[1728092261330,1.04,2417.2,2416.8,0.3877]
[1728092261531,0.2896,2417.0,2416.8,1.71732]
[1728092262134,0.28961,2416.9,2416.8,1.4277]
[1728092262327,0.28961,2416.9,2416.8,1.95826121]
[1728092262528,0.28961,2416.9,2416.8,6.09586121]
[1728092262929,0.28961,2416.9,2416.8,1.95826121]
[1728092264130,0.2896,2417.0,2416.8,6.38547121]
[1728092264329,0.2896,2417.0,2416.8,1.71731]
[1728092264539,0.2896,2417.0,2416.8,1.4277]
[1728092265223,0.2896,2417.0,2416.9,0.53063839]
[1728092265429,0.2896,2417.0,2416.9,0.53065021]
[1728092265639,0.2896,2417.0,2416.8,1.71732]
[1728092266438,0.2896,2417.0,2416.9,0.5306658]
[1728092267936,0.2896,2417.0,2416.9,1.6155911]
[1728092268329,0.2896,2417.0,2416.9,1.61564619]
[1728092271438,0.2896,2417.0,2416.9,1.61567998]
[1728092271732,0.71679,2417.1,2416.9,1.90528996]
[1728092271937,0.71679,2417.1,2416.9,1.3745353]
[1728092272248,0.71679,2417.1,2417.0,0.3961]
[1728092272249,0.4272,2417.1,2417.0,0.3961]
[1728092272538,0.5149,2417.5,2417.0,0.3961]
[1728092272539,0.28957,2417.2,2417.0,2.01177021]
[1728092272738,0.28958,2417.2,2417.0,1.7706153]
[1728092273144,0.398,2417.1,2417.0,1.7706153]
[1728092273338,0.398,2417.1,2417.0,2.30136392]
[1728092278242,0.398,2417.1,2417.0,2.30140388]
[1728092279035,0.28957,2417.3,2417.1,0.28958]
[1728092279242,6.28756,2417.5,2417.2,0.3913]
[1728092279243,0.3877,2417.4,2417.2,0.3913]
[1728092279550,0.3877,2417.4,2417.3,0.69216]
[1728092280749,0.67725,2417.4,2417.3,0.4026]
[1728092285947,0.3877,2417.4,2417.3,0.4026]
[1728092286148,0.3877,2417.4,2417.3,0.69216]
[1728092286346,0.67725,2417.4,2417.3,0.4026]
[1728092286944,0.3877,2417.4,2417.3,0.4026]
[1728092287142,0.096,2417.8,2417.3,4.1368]
[1728092287351,0.096,2417.8,2417.2,5.7240253]
[1728092287352,0.28951,2417.7,2417.5,2.4144553]
[1728092287553,0.3947,2417.8,2417.6,0.8106]
[1728092287554,0.68421,2417.8,2417.6,0.8106]
[1728092287950,0.68421,2417.8,2417.7,0.4085]
[1728092290352,0.68421,2417.8,2417.7,0.69801]
[1728092290655,0.68421,2417.8,2417.7,0.4085]
[1728092293158,0.2895,2417.9,2417.7,0.69801]
[1728092293356,0.2895,2417.8,2417.7,0.4085]
[1728092293563,0.2895,2417.9,2417.7,0.69801]
[1728092293753,0.28949,2417.9,2417.7,0.69801]
[1728092294066,0.28949,2417.9,2417.8,1.04]
[1728092295062,0.67978,2418.0,2417.8,1.3295]
[1728092295364,0.28949,2417.9,2417.8,1.04]
[1728092295768,0.67978,2418.0,2417.8,1.32949]
[1728092296461,0.67978,2418.0,2417.7,0.4085]
[1728092296462,0.38545,2418.3,2418.1,0.28946]
[1728092296648,0.28945,2418.3,2418.2,2.2404]
[1728092297558,0.4215,2418.5,2418.2,2.2404]
[1728092297853,0.38539,2418.8,2418.5,0.28941]
[1728092298060,0.94542,2419.0,2418.6,1.8451]
[1728092298061,0.28939,2418.7,2418.6,1.8451]
[1728092298253,0.28939,2418.7,2418.6,0.8051]
[1728092299058,11.1744,2418.7,2418.1,4.6328]
[1728092299259,4.34559,2418.8,2417.9,0.289]
[1728092299260,4.2478,2418.2,2417.9,0.289]
[1728092299562,4.2478,2418.2,2417.7,1.2042]
[1728092299563,0.2895,2417.8,2417.7,1.2042]
[1728092299751,1.04,2418.0,2417.7,1.49371]
[1728092299752,0.28949,2417.9,2417.7,1.49371]
[1728092300760,1.32948,2418.0,2417.7,1.49371]
[1728092301157,0.28948,2418.0,2417.8,0.2895]
[1728092301356,0.70377,2418.1,2417.9,1.04]
[1728092301560,0.4143,2418.1,2417.9,0.28948]
[1728092301756,3.49726,2418.2,2418.0,0.4054]
[1728092302063,3.2078,2418.2,2418.1,0.3977]
[1728092302261,3.2078,2418.2,2418.1,0.7904]
[1728092303255,0.68775,2418.3,2418.1,0.7904]
[1728092303457,3.89555,2418.3,2418.1,0.7904]
[1728092303652,3.2078,2418.3,2418.2,2.26]
[1728092305557,0.28943,2418.4,2418.2,2.26]
[1728092306567,0.28943,2418.4,2418.2,2.54945]
[1728092306766,0.70522,2418.5,2418.3,0.28944]
[1728092306970,0.70522,2418.5,2418.2,2.54945]
[1728092308055,3.2078,2418.7,2418.3,0.28943]
[1728092308056,0.28941,2418.6,2418.3,0.28943]
[1728092308253,0.28941,2418.6,2418.4,0.3874]
[1728092308464,3.2078,2418.7,2418.5,0.8157]
[1728092308465,3.4972,2418.7,2418.5,0.8157]
[1728092308655,3.2078,2418.7,2418.5,0.8157]
[1728092308862,3.4972,2418.7,2418.5,0.8157]
[1728092310470,3.2078,2418.7,2418.5,0.8157]
[1728092310680,3.4972,2418.7,2418.5,0.8157]
[1728092310863,3.4972,2418.7,2418.5,1.10512]
[1728092311168,3.2078,2418.7,2418.5,1.10512]
[1728092311470,0.67759,2418.8,2418.5,1.10512]
[1728092311670,0.3882,2418.8,2418.5,1.10512]
[1728092312164,0.28937,2418.9,2418.5,3.0757]
[1728092312363,4.87527,2419.0,2418.7,0.28939]
[1728092312560,0.28937,2418.9,2418.8,0.3913]
[1728092312863,4.87526,2419.0,2418.8,0.3913]
[1728092313064,4.87526,2419.0,2418.9,0.8068]
[1728092313269,0.68926,2419.0,2418.9,0.8068]
[1728092313468,0.096,2419.3,2418.9,1.09616]
[1728092313772,0.69294,2419.2,2418.9,3.35616]
[1728092315777,0.4887,2419.5,2418.9,3.35616]
[1728092315778,0.28932,2419.3,2419.1,2.26]
[1728092316276,0.28932,2419.3,2419.2,0.4014]
[1728092316669,0.28936,2419.0,2418.9,0.8068]
[1728092318268,0.28935,2419.1,2418.9,0.8068]
[1728092318668,0.4254,2419.0,2418.9,0.8068]
[1728092320262,0.4254,2419.0,2418.9,1.09617]
[1728092320773,0.4254,2419.0,2418.9,0.8068]
[1728092322564,0.71476,2419.0,2418.9,0.8068]
[1728092322773,0.71476,2419.0,2418.7,0.28938]
[1728092323176,0.4254,2419.0,2418.8,0.28937]
[1728092323367,0.4254,2419.0,2418.9,0.4144]
[1728092324477,0.4254,2419.0,2418.9,0.70377]
[1728092325374,0.28933,2419.3,2419.0,0.28935]
[1728092325564,3.2078,2419.4,2418.9,0.4144]
[1728092325565,0.28936,2419.0,2418.9,0.4144]
[1728092325764,0.4158,2419.2,2418.9,0.4144]
[1728092326077,0.4158,2419.2,2419.0,0.67915]
[1728092326778,0.70514,2419.2,2419.0,0.67915]
[1728092329779,0.4158,2419.2,2419.0,0.67915]
[1728092330880,0.70513,2419.2,2419.0,0.67915]
[1728092336886,0.28934,2419.1,2419.0,0.3898]
[1728092337282,0.70514,2419.2,2419.0,0.67916]
[1728092339389,0.28936,2419.0,2418.9,0.8355]
[1728092340489,0.28936,2419.0,2418.9,1.12487]
[1728092340990,0.28936,2419.0,2418.9,0.8355]
[1728092341584,0.28936,2419.0,2418.9,1.8755]
[1728092346390,0.4158,2419.2,2418.9,1.8755]
[1728092346600,0.28935,2419.1,2418.9,1.8755]
[1728092346787,0.4158,2419.2,2418.9,1.8755]
[1728092347091,0.28936,2419.0,2418.9,1.8755]
[1728092347292,0.28935,2419.1,2418.9,1.8755]
[1728092347695,0.28936,2419.0,2418.9,1.8755]
[1728092350088,0.28935,2419.1,2418.9,1.8755]
[1728092352388,0.28935,2419.1,2418.9,2.16487]
[1728092352593,0.28935,2419.1,2418.9,1.8755]
[1728092353098,0.28935,2419.1,2418.9,2.2951]
[1728092353698,0.28935,2419.1,2418.9,2.58447]
[1728092355002,3.6236,2419.2,2418.9,2.58447]
[1728092355003,3.91294,2419.2,2418.9,2.58447]
[1728092355302,3.91294,2419.2,2419.0,0.53086864]
[1728092355597,3.91294,2419.2,2418.9,2.58447]
[1728092355791,3.91294,2419.2,2419.0,0.53086841]
[1728092355998,3.91294,2419.2,2418.9,2.58447]
[1728092356193,3.91294,2419.2,2419.0,0.5308685]
[1728092356398,3.91294,2419.2,2418.9,2.58447]
[1728092356594,3.91294,2419.2,2419.0,0.53101736]
[1728092356793,3.91294,2419.2,2418.9,2.58447]
[1728092356991,3.91294,2419.2,2419.0,0.53101382]
[1728092357193,3.6236,2419.2,2418.9,2.58447]
[1728092357393,3.6236,2419.2,2419.0,2.64766793]
[1728092357394,3.91294,2419.2,2419.0,2.64766793]
[1728092357606,3.91294,2419.2,2419.1,0.53117405]
[1728092357894,3.91294,2419.2,2419.1,0.53117516]
[1728092358300,3.91294,2419.2,2419.1,1.61621627]
[1728092360402,3.91294,2419.2,2419.1,3.17964027]
[1728092360604,3.91294,2419.2,2419.1,1.5634135]
[1728092360803,3.91294,2419.2,2419.1,3.72315127]
[1728092361001,3.91294,2419.2,2419.1,2.0947981]
[1728092361502,3.91294,2419.2,2419.1,4.22008077]
[1728092361701,3.2078,2419.2,2419.1,5.90267473]
[1728092362002,3.2078,2419.2,2419.1,8.40792156]
[1728092362207,3.3038,2419.5,2419.1,16.27907521]
[1728092362503,3.2078,2419.5,2419.4,1.32931]
[1728092362699,3.2078,2419.5,2419.4,2.65640763]
[1728092362902,3.4971,2419.5,2419.4,2.65640763]
[1728092363304,3.4971,2419.5,2419.4,1.5713846]
[1728092363697,3.2078,2419.5,2419.4,0.53114799]
[1728092363892,3.4971,2419.5,2419.4,0.53114799]
[1728092364296,3.2078,2419.5,2419.3,2.12502303]
[1728092364497,1.10781,2419.4,2419.3,2.12502303]
[1728092364805,0.8185,2419.4,2419.3,2.94541494]
[1728092365205,1.10781,2419.4,2419.3,4.50794179]
[1728092365400,1.10781,2419.4,2419.3,1.86039191]
[1728092366603,1.10781,2419.4,2419.3,1.04]
[1728092368607,0.7232,2419.7,2419.3,1.04]
[1728092368806,0.2893,2419.5,2419.3,1.32932]
[1728092369111,0.2893,2419.5,2419.3,1.04]
[1728092371206,0.28931,2419.4,2419.3,1.04]
[1728092372411,0.28931,2419.4,2419.3,2.12502303]
[1728092372616,0.28931,2419.4,2419.3,1.04]
[1728092373112,0.28931,2419.4,2419.3,2.12502303]
[1728092373915,0.28931,2419.4,2419.3,2.6557163]
[1728092374410,0.28931,2419.4,2419.3,1.57069327]
[1728092376507,1.1214,2419.7,2419.3,1.57069327]
[1728092376709,0.28931,2419.4,2419.3,1.04]
[1728092376908,0.28931,2419.4,2419.3,2.65565422]
[1728092377318,0.28931,2419.4,2419.3,2.12502303]
[1728092377518,0.28931,2419.4,2419.3,2.65562591]
[1728092379411,0.28931,2419.4,2419.3,1.57060288]
[1728092379920,0.69821,2419.4,2419.3,1.57060288]
[1728092381811,0.69821,2419.4,2419.3,1.04]
[1728092388838,0.28931,2419.4,2419.3,1.57054588]
[1728092392138,0.28931,2419.4,2419.3,1.85986588]
[1728092393040,0.28931,2419.4,2419.3,1.57054588]
[1728092393232,0.28931,2419.4,2419.3,1.57057821]
[1728092395541,0.28931,2419.4,2419.3,2.65560124]
[1728092396234,0.28931,2419.4,2419.3,2.12502303]
[1728092396433,0.28931,2419.4,2419.3,2.65563185]
[1728092396635,0.28931,2419.4,2419.3,2.12502303]
[1728092396838,0.28931,2419.4,2419.3,2.41434303]
[1728092397142,0.28931,2419.4,2419.3,2.944957]
[1728092397844,0.28931,2419.4,2419.3,4.50614974]
[1728092398042,0.28931,2419.4,2419.3,2.944957]
[1728092398748,0.28931,2419.4,2419.3,4.50622521]
[1728092400143,0.28931,2419.4,2419.3,7.71402521]
[1728092400348,0.28931,2419.4,2419.3,6.09838821]
[1728092400647,0.28931,2419.4,2419.3,6.89315626]
[1728092400845,0.28931,2419.4,2419.3,6.89316413]
[1728092401443,0.28931,2419.4,2419.3,5.80927597]
[1728092401948,0.28931,2419.4,2419.3,6.89326906]
[1728092403550,0.28931,2419.4,2419.3,5.80927597]
[1728092403740,0.28931,2419.4,2419.3,6.893543]
[1728092403945,0.28931,2419.4,2419.3,2.60147597]
[1728092404248,0.28931,2419.4,2419.3,5.89929378]
[1728092404650,0.28931,2419.4,2419.3,4.76042335]
[1728092405044,0.28931,2419.4,2419.3,5.60997365]
[1728092405841,0.28931,2419.4,2419.3,5.0792245]
[1728092406051,0.28931,2419.4,2419.3,5.61028498]
[1728092406252,0.28931,2419.4,2419.3,5.0792245]
[1728092406447,0.28931,2419.4,2419.3,5.61060165]
[1728092408550,0.28931,2419.4,2419.3,3.9830671]
[1728092409049,0.28931,2419.4,2419.3,3.98433047]
[1728092409356,0.28931,2419.5,2419.3,3.98468968]
[1728092409548,0.3853,2419.4,2419.3,1.04]
[1728092409852,0.3853,2419.4,2419.3,3.98469513]
[1728092410351,12.4529,2419.4,2419.0,1.08532328]
[1728092410551,3.2078,2419.2,2418.8,1.08532328]
[1728092410750,0.28936,2419.0,2418.7,1.73138]
[1728092411057,0.28936,2419.0,2418.9,1.04]
[1728092411246,0.4178,2419.0,2418.9,1.04]
[1728092412449,0.70716,2419.0,2418.9,1.4288]
[1728092413451,0.4178,2419.0,2418.9,1.4288]
[1728092419266,0.4095,2419.1,2418.9,1.71816]
[1728092419660,0.4095,2419.1,2419.0,0.4035]
[1728092424365,0.69884,2419.1,2419.0,0.4035]
[1728092424565,0.4095,2419.1,2419.0,0.4035]
[1728092426263,0.28933,2419.2,2419.0,0.4035]
[1728092430369,3.6021,2419.3,2419.0,0.4035]
[1728092430370,0.28934,2419.1,2419.0,0.4035]
[1728092430575,0.28936,2419.0,2418.9,0.3888]
[1728092430767,0.68986,2419.0,2418.9,0.3888]
[1728092433875,0.4005,2419.0,2418.9,0.3888]
[1728092434483,0.68986,2419.0,2418.9,0.3888]
[1728092445985,0.28937,2418.9,2418.8,0.4036]
[1728092450671,0.28937,2418.9,2418.8,1.48892328]
[1728092451082,0.28937,2418.9,2418.8,2.01543071]
[1728092453075,0.28937,2418.9,2418.8,1.48892328]
[1728092453277,0.28937,2418.9,2418.8,2.01559825]
[1728092453476,0.28937,2418.9,2418.8,3.57353725]
[1728092454484,0.68987,2419.0,2418.8,4.40530328]
[1728092454685,0.68987,2419.0,2418.9,1.6113586]
[1728092454880,0.68987,2419.0,2418.9,1.08468363]
[1728092455085,0.68987,2419.0,2418.9,1.61158633]
[1728092455486,0.68987,2419.0,2418.9,3.17097323]
[1728092455877,0.68987,2419.0,2418.9,0.5269027]
[1728092456277,0.68987,2419.0,2418.9,1.61158633]
[1728092456478,3.2078,2419.1,2418.9,1.61158633]
[1728092456684,3.49715,2419.1,2418.9,1.37404363]
[1728092456879,3.49715,2419.1,2419.0,0.91505302]
[1728092457081,3.49715,2419.1,2419.0,0.9150349]
[1728092457489,3.49715,2419.1,2419.0,0.3877]
[1728092458883,0.28935,2419.1,2419.0,0.3877]
[1728092461088,1.49975,2419.1,2419.0,0.3877]
[1728092462394,0.28936,2419.0,2418.8,1.77766363]
[1728092462699,0.28936,2419.0,2418.8,2.18436363]
[1728092463087,1.2104,2419.1,2418.8,1.08468363]
[1728092463392,0.28938,2418.8,2418.7,1.08468363]
[1728092463596,0.28938,2418.8,2418.7,3.58285914]
[1728092463892,0.28938,2418.8,2418.7,4.12589817]
[1728092464500,0.28938,2418.8,2418.7,2.56647965]
[1728092464685,0.28938,2418.8,2418.7,4.12576617]
[1728092465394,0.28936,2419.0,2418.8,0.28938]
[1728092465583,1.32936,2419.0,2418.9,1.08518797]
[1728092465788,0.28938,2418.8,2418.6,1.08518797]
[1728092466000,1.74879,2418.7,2418.6,1.08518797]
[1728092466297,2.16739,2418.7,2418.6,0.5272212]
[1728092466887,2.16739,2418.7,2418.5,1.08518797]
[1728092466888,0.2894,2418.6,2418.5,1.08518797]
[1728092467191,0.2894,2418.6,2418.2,2.44949365]
[1728092467192,5.89792,2418.6,2418.2,1.37418797]
[1728092467488,0.28944,2418.3,2418.1,1.48948797]
[1728092467694,0.28944,2418.3,2418.2,0.52700847]
[1728092467892,0.4098,2418.3,2418.2,0.52700847]
[1728092468082,0.4098,2418.3,2418.2,1.08518797]
[1728092468289,0.4098,2418.3,2418.1,1.77894797]
[1728092468996,0.28943,2418.5,2418.2,1.90142032]
[1728092469189,0.28943,2418.5,2418.2,0.28945]
[1728092469190,0.69923,2418.5,2418.2,0.28945]
[1728092469994,4.7114,2418.7,2418.3,1.04]
[1728092470293,0.708,2418.7,2418.4,0.70093]
[1728092470498,0.2894,2418.6,2418.5,0.4123]
[1728092471089,4.4238,2418.6,2418.5,0.4123]
[1728092472891,5.1744,2418.6,2418.1,1.37464797]
[1728092473096,0.28944,2418.3,2418.2,0.4267]
[1728092473998,0.28943,2418.4,2418.2,0.4267]
[1728092474502,0.385,2418.5,2418.2,0.4267]
[1728092474702,3.2078,2418.4,2418.0,1.08518797]
[1728092474904,0.4146,2418.3,2418.0,1.08518797]
[1728092475103,0.70405,2418.3,2418.1,0.4157]
[1728092478791,0.70405,2418.3,2418.1,0.70516]
[1728092479397,0.70405,2418.3,2418.1,1.74516]
[1728092479701,0.28945,2418.3,2418.1,1.74516]
[1728092482400,0.28945,2418.3,2418.1,1.4557]
[1728092485500,0.28945,2418.2,2418.1,0.4157]
[1728092486515,0.28946,2418.1,2417.9,1.09808]
[1728092486805,0.8515,2418.1,2418.0,0.28948]
[1728092487201,0.8515,2418.1,2417.9,1.48458]
[1728092487400,0.8515,2418.1,2418.0,0.28948]
[1728092489109,4.6327,2418.5,2417.9,2.2351]
[1728092489305,0.28944,2418.4,2418.1,0.28946]
[1728092489713,4.6327,2418.5,2418.2,0.3973]
[1728092489903,3.88212,2418.5,2418.3,0.7954]
[1728092490902,0.67432,2418.5,2418.3,0.7954]
[1728092492607,1.8507,2418.6,2418.3,0.7954]
[1728092492805,0.28942,2418.5,2418.3,0.7954]
[1728092495215,1.8507,2418.6,2418.3,0.7954]
[1728092495417,0.28943,2418.4,2418.3,0.7954]
[1728092495617,1.8507,2418.6,2418.3,0.7954]
[1728092496121,0.28943,2418.5,2418.3,0.7954]
[1728092496511,0.28943,2418.5,2418.3,1.08484]
[1728092502517,0.4234,2418.8,2418.4,1.32942]
[1728092502714,1.2322,2418.8,2418.4,1.75282]
[1728092502920,0.28939,2418.7,2418.5,0.4064]
[1728092503115,0.2894,2418.7,2418.5,0.69582]
[1728092503319,1.09819,2418.8,2418.5,0.69582]
[1728092503522,0.28939,2418.8,2418.6,0.2894]
[1728092503714,4.2478,2418.9,2418.7,1.4507]
[1728092503715,3.2078,2418.9,2418.7,1.4507]
[1728092503922,3.2078,2418.9,2418.8,0.4234]
[1728092504121,3.49717,2418.9,2418.8,0.8298]
[1728092505424,0.28937,2418.9,2418.8,0.8298]
[1728092506724,0.70787,2419.0,2418.8,0.8298]
[1728092507029,0.28937,2419.0,2418.8,1.11918]
[1728092507726,0.28937,2419.0,2418.8,0.8298]
[1728092508125,1.8309,2419.1,2418.8,0.8298]
[1728092508126,0.28935,2419.1,2418.9,0.28936]
[1728092508429,1.4349,2419.2,2419.0,0.28936]
[1728092508430,0.28934,2419.2,2419.0,0.28936]
[1728092508638,0.28934,2419.2,2419.1,0.4229]
[1728092513128,0.69473,2419.3,2419.1,0.4229]
[1728092513322,0.28933,2419.3,2419.2,0.3884]
[1728092513521,0.28933,2419.3,2419.2,0.8113]
[1728092516935,0.28931,2419.4,2419.2,2.14063]
[1728092518431,6.34919525,2419.5,2419.2,2.14063]
[1728092518634,0.28931,2419.4,2419.2,2.14063]
[1728092518833,0.28931,2419.4,2419.2,5.9849]
[1728092519132,0.28931,2419.4,2419.2,1.8513]
[1728092519332,0.28931,2419.4,2419.2,5.9849]
[1728092519639,0.28931,2419.4,2419.2,1.8513]
[1728092519937,0.28931,2419.4,2419.2,6.27423]
[1728092520943,0.28931,2419.4,2419.2,5.9849]
[1728092522332,6.34919525,2419.5,2419.3,1.04]
[1728092522531,0.2893,2419.5,2419.3,1.04]
[1728092522736,0.28931,2419.4,2419.3,1.04]
[1728092523131,0.28931,2419.4,2419.3,5.1736]
[1728092523342,0.28931,2419.4,2419.3,1.04]
[1728092524636,0.28931,2419.4,2419.3,5.1736]
[1728092528038,0.28931,2419.4,2419.3,1.04]
[1728092540166,0.28931,2419.4,2419.2,0.4229]
[1728092540361,1.1907,2419.3,2419.2,0.4229]
[1728092544666,1.1907,2419.3,2419.2,0.71223]
[1728092546466,0.774,2419.3,2419.2,0.71223]
[1728092553176,0.774,2419.3,2419.2,3.89729459]
[1728092553676,0.774,2419.3,2419.2,4.42393275]
[1728092555573,0.70129,2419.6,2419.4,0.28931]
[1728092555877,0.8194,2419.5,2419.4,0.28931]
[1728092556078,0.8194,2419.5,2419.3,1.08409374]
[1728092556079,1.1087,2419.5,2419.3,1.37340374]
[1728092556278,1.1087,2419.5,2419.4,1.61093928]
[1728092558083,1.1087,2419.5,2419.4,0.52684554]
[1728092558273,1.1087,2419.5,2419.4,1.61093928]
[1728092559480,1.1087,2419.5,2419.4,1.08409374]
[1728092559682,1.1087,2419.5,2419.4,1.61114576]
[1728092561775,1.1087,2419.5,2419.4,1.08409374]
[1728092562183,1.1087,2419.5,2419.4,2.64331171]
[1728092562480,1.1087,2419.5,2419.4,2.6433243]
[1728092565184,1.1087,2419.5,2419.4,3.18701251]
[1728092565383,1.1087,2419.5,2419.4,2.64452134]
[1728092566679,1.1087,2419.5,2419.4,1.08529078]
[1728092566680,5.2415,2419.5,2419.4,1.08529078]
[1728092566978,0.28931,2419.4,2419.3,1.08529078]
[1728092567285,5.9922,2419.5,2419.2,1.08529078]
[1728092567286,0.28932,2419.3,2419.2,1.08529078]
[1728092567477,0.28932,2419.3,2419.2,2.64488252]
[1728092567975,0.28932,2419.3,2419.2,1.08529078]
[1728092568276,0.28934,2419.2,2419.0,3.49715]
[1728092568477,0.69324,2419.2,2419.0,3.49715]
[1728092568877,0.69324,2419.2,2419.1,0.52728827]
[1728092574687,0.28932,2419.4,2419.2,0.28933]
[1728092574882,0.67782,2419.4,2419.2,0.69463]
[1728092575187,0.3885,2419.4,2419.2,1.11763]
[1728092576281,0.3885,2419.4,2419.2,2.20292078]
[1728092576485,0.6927,2419.5,2419.3,1.08529078]
[1728092576683,1.0812,2419.5,2419.3,1.08529078]
[1728092577792,0.28931,2419.4,2419.3,1.08529078]
[1728092579183,0.7919,2419.5,2419.3,1.08529078]
[1728092579382,1.0812,2419.5,2419.3,1.08529078]
[1728092582781,0.412,2419.6,2419.3,1.08529078]
[1728092582782,3.3038,2419.8,2419.4,1.04]
[1728092582977,0.28928,2419.7,2419.4,2.41459078]
[1728092583188,3.49707,2419.8,2419.5,2.84069078]
[1728092583386,3.49707,2419.8,2419.6,0.8159]
[1728092583590,3.49707,2419.8,2419.7,1.04]
[1728092583591,3.2078,2419.8,2419.7,1.04]
[1728092584689,3.49706,2419.8,2419.7,1.04]
[1728092584879,0.28926,2419.8,2419.7,1.04]
[1728092585084,0.28926,2419.8,2419.7,1.56680666]
[1728092585586,0.28926,2419.8,2419.7,1.56670502]
[1728092586379,0.28926,2419.8,2419.7,1.04]
[1728092586788,0.7928,2419.9,2419.7,1.04]
[1728092586789,1.08206,2419.9,2419.7,1.04]
[1728092587292,1.08206,2419.9,2419.8,0.3933]
[1728092589391,9.1734,2419.9,2419.2,1.37429078]
[1728092589698,0.28931,2419.4,2419.3,1.95972742]
[1728092590996,0.28931,2419.4,2419.3,1.9597273]
[1728092591387,0.28931,2419.4,2419.3,5.14418342]
[1728092591893,0.28931,2419.4,2419.3,4.61775612]
[1728092592093,0.28931,2419.4,2419.3,5.14416502]
[1728092593797,0.3905,2419.5,2419.3,5.14416502]
[1728092593998,0.67981,2419.5,2419.4,1.60961974]
[1728092595296,0.67981,2419.5,2419.4,1.60956576]
[1728092595897,0.3905,2419.5,2419.4,1.89887576]
[1728092597099,0.28928,2419.7,2419.5,0.2893]
[1728092597306,0.28928,2419.7,2419.6,1.2158]
[1728092598006,4.42208,2419.7,2419.6,1.2158]
[1728092598306,4.1328,2419.7,2419.6,1.2158]
[1728092598695,0.28927,2419.8,2419.6,1.2158]
[1728092598995,4.42207,2419.8,2419.6,1.2158]
[1728092600002,0.28927,2419.8,2419.6,1.2158]
[1728092600202,0.28927,2419.7,2419.6,1.2158]
[1728092602600,0.8107,2419.9,2419.6,1.2158]
[1728092602801,0.28927,2419.8,2419.6,1.2158]
[1728092604407,0.28927,2419.8,2419.6,1.50508]
[1728092608703,1.09995,2419.9,2419.7,0.28927]
[1728092609103,1.09995,2419.9,2419.6,2.2558]
[1728092609409,0.8107,2419.9,2419.6,2.2558]
[1728092609612,0.28924,2420.0,2419.6,3.33901084]
[1728092609814,0.28924,2420.0,2419.8,0.28926]
[1728092610323,0.28924,2420.0,2419.9,0.4072]
[1728092610803,3.6308,2420.1,2419.9,0.4072]
[1728092611009,0.28924,2420.0,2419.9,0.4072]
[1728092612909,11.172,2420.0,2419.5,1.08321084]
[1728092613108,0.28928,2419.6,2419.5,1.08321084]
[1728092613413,0.28928,2419.6,2419.5,1.60923748]
[1728092614507,0.28928,2419.6,2419.5,1.08321084]
[1728092616018,1.08588,2419.7,2419.5,1.37250084]
[1728092616412,1.08588,2419.7,2419.6,1.04]
[1728092616719,0.4064,2419.9,2419.7,0.28927]
[1728092616720,0.28926,2419.9,2419.7,0.28927]
[1728092617019,0.28926,2419.9,2419.8,1.2289]